fUSD/lending_fUSD_20240420
["ID","MTS","AMOUNT","RATE_DAILY","PERIOD"]
[323039669,1713611449851,-671.97,0.00015068,2]
[323039670,1713611449861,-500.0,0.00015068,2]
[323039671,1713611449870,-3596.44,0.00015068,2]
[323039672,1713611449879,-634.17,0.00015068,2]
[323039673,1713611449889,-585.26,0.00015068,2]
[323039674,1713611449900,-500.0,0.00015068,2]
[323039675,1713611449909,-500.0,0.00015068,2]
[323039676,1713611449919,-500.0,0.00015068,2]
[323039677,1713611449928,-500.0,0.00015068,2]
[323039678,1713611449938,-1500.82,0.00015068,2]
[323039679,1713611449948,-500.0,0.00015068,2]
[323039680,1713611449958,-500.0,0.00015068,2]
[323039681,1713611449967,-1828.69,0.00015068,2]
[323039682,1713611449977,-300.0,0.00015068,2]
[323039683,1713611449986,-557.17,0.00015096,2]
[323039684,1713611449995,-1854.38,0.00015096,2]
[323039685,1713611450005,-968.988,0.00015142,2]
[323039686,1713611450014,-12248.21402447,0.00015143,2]
[323039687,1713611450025,-443.0,0.00015168,2]
[323039688,1713611450035,-5891.0,0.00015168,2]
[323039689,1713611450044,-5727.0,0.00015168,2]
[323039690,1713611450054,-2704.0,0.00015168,2]
[323039691,1713611450064,-37676.0,0.00015168,2]
[323039692,1713611450074,-2852.97186354,0.00015203,2]
[323039693,1713611450084,-2000.76893486,0.00015203,2]
[323039694,1713611450093,-959.0,0.00015203,2]
[323039695,1713611450103,-150.0,0.00015235,2]
[323039696,1713611450113,-169.22943789,0.00015267,2]
[323039697,1713611450122,-649.6,0.00015282,2]
[323039698,1713611450134,-150.371,0.00015303,2]
[323039699,1713611450145,-2294.0,0.00015303,2]
[323039700,1713611450154,-1393.0,0.00015303,2]
[323039701,1713611450164,-461.0,0.00015303,2]
[323039702,1713611450174,-969.0,0.00015303,2]
[323039703,1713611450184,-1228.0,0.00015303,2]
[323039704,1713611450194,-1255.0,0.00015303,2]
[323039705,1713611450204,-541.0,0.00015303,2]
[323039706,1713611450214,-257.0,0.00015303,2]
[323039707,1713611450223,-609.0,0.00015303,2]
[323039708,1713611450233,-1938.0,0.00015303,2]
[323039709,1713611450242,-436.0,0.00015303,2]
[323039710,1713611450252,-807.0,0.00015303,2]
[323039711,1713611450265,-12248.21402447,0.00015318,2]
[323039712,1713611450391,-200.0,0.00015324,2]
[323039713,1713611450412,-206.18426768,0.0001534,2]
[323039714,1713611450421,-236.19627997,0.0001534,2]
[323039715,1713611450432,-511.28961468,0.0001534,2]
[323039716,1713611450442,-786.20827764,0.0001534,2]
[323039717,1713611450451,-199.87072247,0.0001534,2]
[323039718,1713611450462,-407.56490296,0.0001534,2]
[323039719,1713611450471,-155.38655138,0.0001534,2]
[323039720,1713611450481,-155.35145288,0.0001534,2]
[323039721,1713611450491,-309.40866786,0.0001534,2]
[323039722,1713611450501,-161.26291727,0.00015341,2]
[323039723,1713611450511,-300.0,0.00015341,2]
[323039724,1713611450521,-300.0,0.00015341,2]
[323039725,1713611450530,-554.57,0.00015342,2]
[323039726,1713611450540,-500.0,0.00015342,2]
[323039727,1713611450550,-154.42881229,0.00015342,2]
[323039728,1713611450560,-500.0,0.00015342,2]
[323039729,1713611450570,-883.29,0.00015342,2]
[323039730,1713611450579,-233.19,0.00015342,2]
[323039731,1713611450589,-500.0,0.00015342,2]
[323039732,1713611450598,-500.0,0.00015342,2]
[323039733,1713611450608,-713.88,0.00015342,2]
[323039734,1713611450618,-500.0,0.00015342,2]
[323039735,1713611450627,-590.88,0.00015342,2]
[323039736,1713611450637,-500.0,0.00015342,2]
[323039737,1713611450649,-500.0,0.00015342,2]
[323039738,1713611450658,-500.0,0.00015342,2]
[323039739,1713611450667,-500.0,0.00015342,2]
[323039740,1713611450677,-500.0,0.00015342,2]
[323039741,1713611450686,-500.0,0.00015342,2]
[323039742,1713611450696,-500.0,0.00015342,2]
[323039743,1713611450705,-500.0,0.00015342,2]
[323039744,1713611450715,-772.41,0.00015342,2]
[323039745,1713611450725,-500.0,0.00015342,2]
[323039746,1713611450734,-589.74,0.00015342,2]
[323039747,1713611450744,-500.0,0.00015342,2]
[323039748,1713611450754,-500.0,0.00015342,2]
[323039749,1713611450764,-500.0,0.00015342,2]
[323039750,1713611450774,-500.0,0.00015342,2]
[323039751,1713611450784,-500.0,0.00015342,2]
[323039752,1713611450794,-794.84,0.00015342,2]
[323039753,1713611450803,-500.0,0.00015342,2]
[323039754,1713611450813,-500.0,0.00015342,2]
[323039755,1713611450823,-1151.44,0.00015342,2]
[323039756,1713611450833,-541.27,0.00015342,2]
[323039757,1713611450843,-500.0,0.00015342,2]
[323039758,1713611450853,-500.0,0.00015342,2]
[323039759,1713611450862,-935.07,0.00015342,2]
[323039760,1713611450872,-500.0,0.00015342,2]
[323039761,1713611450881,-500.0,0.00015342,2]
[323039762,1713611450893,-500.0,0.00015342,2]
[323039763,1713611450902,-500.0,0.00015342,2]
[323039764,1713611450912,-500.0,0.00015342,2]
[323039765,1713611450922,-515.86,0.00015342,2]
[323039766,1713611450931,-597.68,0.00015342,2]
[323039767,1713611450941,-500.0,0.00015342,2]
[323039768,1713611450951,-500.0,0.00015342,2]
[323039769,1713611450962,-914.0,0.00015342,2]
[323039770,1713611450971,-500.0,0.00015342,2]
[323039771,1713611450981,-500.0,0.00015342,2]
[323039772,1713611450991,-500.0,0.00015342,2]
[323039773,1713611451001,-542.59,0.00015342,2]
[323039774,1713611451010,-500.0,0.00015342,2]
[323039775,1713611451020,-500.0,0.00015342,2]
[323039776,1713611451031,-500.0,0.00015342,2]
[323039777,1713611451041,-921.09,0.00015342,2]
[323039778,1713611451051,-500.0,0.00015342,2]
[323039779,1713611451061,-500.68,0.00015342,2]
[323039780,1713611451071,-500.0,0.00015342,2]
[323039781,1713611451081,-500.0,0.00015342,2]
[323039782,1713611451091,-500.0,0.00015342,2]
[323039783,1713611451100,-500.0,0.00015342,2]
[323039784,1713611451110,-500.0,0.00015342,2]
[323039785,1713611451119,-500.0,0.00015342,2]
[323039786,1713611451129,-500.0,0.00015342,2]
[323039787,1713611451139,-500.0,0.00015342,2]
[323039788,1713611451150,-500.0,0.00015342,2]
[323039789,1713611451160,-500.0,0.00015342,2]
[323039790,1713611451169,-500.0,0.00015342,2]
[323039791,1713611451180,-500.0,0.00015342,2]
[323039792,1713611451189,-500.0,0.00015342,2]
[323039793,1713611451199,-725.79,0.00015342,2]
[323039794,1713611451209,-700.93,0.00015342,2]
[323039795,1713611451218,-500.0,0.00015342,2]
[323039796,1713611451228,-348.86,0.00015342,2]
[323039797,1713611451238,-500.0,0.00015342,2]
[323039798,1713611451247,-500.0,0.00015342,2]
[323039799,1713611451259,-557.48,0.00015342,2]
[323039800,1713611451270,-500.0,0.00015342,2]
[323039801,1713611451279,-500.0,0.00015342,2]
[323039802,1713611451289,-500.0,0.00015342,2]
[323039803,1713611451299,-503.06,0.00015342,2]
[323039804,1713611451308,-500.0,0.00015342,2]
[323039805,1713611451317,-500.0,0.00015342,2]
[323039806,1713611451326,-500.0,0.00015342,2]
[323039807,1713611451337,-582.58,0.00015342,2]
[323039808,1713611451347,-500.0,0.00015342,2]
[323039809,1713611451357,-500.0,0.00015342,2]
[323039810,1713611451367,-536.34,0.00015342,2]
[323039811,1713611451377,-500.0,0.00015342,2]
[323039812,1713611451385,-500.0,0.00015342,2]
[323039813,1713611451396,-500.0,0.00015342,2]
[323039814,1713611451405,-546.61,0.00015342,2]
[323039815,1713611451415,-500.0,0.00015342,2]
[323039816,1713611451425,-500.0,0.00015342,2]
[323039817,1713611451434,-272.06802914,0.00015342,2]
[323039818,1713611451444,-500.0,0.00015342,2]
[323039819,1713611451453,-500.0,0.00015342,2]
[323039820,1713611451463,-500.0,0.00015342,2]
[323039821,1713611451473,-500.0,0.00015342,2]
[323039822,1713611451482,-500.0,0.00015342,2]
[323039823,1713611451492,-500.0,0.00015342,2]
[323039824,1713611451501,-500.0,0.00015342,2]
[323039825,1713611451511,-500.0,0.00015342,2]
[323039826,1713611451521,-500.0,0.00015342,2]
[323039827,1713611451531,-500.0,0.00015342,2]
[323039828,1713611451540,-500.0,0.00015342,2]
[323039829,1713611451550,-500.0,0.00015342,2]
[323039830,1713611451560,-500.0,0.00015342,2]
[323039831,1713611451570,-1030.65,0.00015342,2]
[323039832,1713611451579,-500.0,0.00015342,2]
[323039833,1713611451589,-594.09,0.00015342,2]
[323039834,1713611451599,-371.87502093,0.00015342,2]
[323039835,1713611451610,-841.22,0.00015342,2]
[323039836,1713611451620,-500.0,0.00015342,2]
[323039837,1713611451630,-500.0,0.00015342,2]
[323039838,1713611451642,-500.0,0.00015342,2]
[323039839,1713611451652,-725.61,0.00015342,2]
[323039840,1713611451662,-500.0,0.00015342,2]
[323039841,1713611451672,-500.0,0.00015342,2]
[323039842,1713611451684,-929.3,0.00015342,2]
[323039843,1713611451694,-336.67580252,0.00015342,2]
[323039844,1713611451704,-500.0,0.00015342,2]
[323039845,1713611451714,-500.0,0.00015342,2]
[323039846,1713611451723,-500.0,0.00015342,2]
[323039847,1713611451733,-500.0,0.00015342,2]
[323039848,1713611451743,-683.72,0.00015342,2]
[323039849,1713611451753,-500.0,0.00015342,2]
[323039850,1713611451763,-811.7,0.00015342,2]
[323039851,1713611451773,-565.98,0.00015342,2]
[323039852,1713611451783,-556.79,0.00015342,2]
[323039853,1713611451793,-656.25,0.00015342,2]
[323039854,1713611451803,-500.0,0.00015342,2]
[323039855,1713611451812,-500.0,0.00015342,2]
[323039856,1713611451822,-500.0,0.00015342,2]
[323039857,1713611451832,-500.0,0.00015342,2]
[323039858,1713611451842,-698.02,0.00015342,2]
[323039859,1713611451851,-500.0,0.00015342,2]
[323039860,1713611451861,-500.0,0.00015342,2]
[323039861,1713611451870,-500.0,0.00015342,2]
[323039862,1713611451880,-500.0,0.00015342,2]
[323039863,1713611451890,-500.0,0.00015342,2]
[323039864,1713611451900,-500.0,0.00015342,2]
[323039865,1713611451911,-500.0,0.00015342,2]
[323039866,1713611451921,-500.0,0.00015342,2]
[323039867,1713611451931,-520.94,0.00015342,2]
[323039868,1713611451941,-500.0,0.00015342,2]
[323039869,1713611451950,-500.0,0.00015342,2]
[323039870,1713611451960,-1558.43,0.00015342,2]
[323039871,1713611451969,-500.0,0.00015342,2]
[323039872,1713611451979,-1035.17,0.00015342,2]
[323039873,1713611451988,-500.0,0.00015342,2]
[323039874,1713611451998,-500.0,0.00015342,2]
[323039875,1713611452008,-576.28,0.00015342,2]
[323039876,1713611452018,-500.0,0.00015342,2]
[323039877,1713611452027,-626.12,0.00015342,2]
[323039878,1713611452036,-603.43,0.00015342,2]
[323039879,1713611452046,-500.0,0.00015342,2]
[323039880,1713611452055,-500.0,0.00015342,2]
[323039881,1713611452065,-878.1,0.00015342,2]
[323039882,1713611452075,-500.0,0.00015342,2]
[323039883,1713611452084,-662.95,0.00015342,2]
[323039884,1713611452093,-500.0,0.00015342,2]
[323039885,1713611452103,-500.0,0.00015342,2]
[323039886,1713611452112,-620.95,0.00015342,2]
[323039887,1713611452121,-500.0,0.00015342,2]
[323039888,1713611452131,-740.29,0.00015342,2]
[323039889,1713611452140,-596.8,0.00015342,2]
[323039890,1713611452150,-500.0,0.00015342,2]
[323039891,1713611452159,-500.0,0.00015342,2]
[323039892,1713611452168,-616.44,0.00015342,2]
[323039893,1713611452177,-500.0,0.00015342,2]
[323039894,1713611452187,-618.37,0.00015342,2]
[323039895,1713611452196,-500.0,0.00015342,2]
[323039896,1713611452206,-945.05,0.00015342,2]
[323039897,1713611452215,-716.56,0.00015342,2]
[323039898,1713611452225,-500.0,0.00015342,2]
[323039899,1713611452234,-500.0,0.00015342,2]
[323039900,1713611452243,-500.0,0.00015342,2]
[323039901,1713611452253,-777.79,0.00015342,2]
[323039902,1713611452266,-500.0,0.00015342,2]
[323039903,1713611452276,-1273.08,0.00015342,2]
[323039904,1713611452285,-500.0,0.00015342,2]
[323039905,1713611452295,-500.0,0.00015342,2]
[323039906,1713611452304,-500.0,0.00015342,2]
[323039907,1713611452313,-640.1,0.00015342,2]
[323039908,1713611452323,-500.0,0.00015342,2]
[323039909,1713611452333,-500.0,0.00015342,2]
[323039910,1713611452343,-500.0,0.00015342,2]
[323039911,1713611452353,-500.0,0.00015342,2]
[323039912,1713611452363,-881.44,0.00015342,2]
[323039913,1713611452372,-500.0,0.00015342,2]
[323039914,1713611452381,-500.0,0.00015342,2]
[323039915,1713611452390,-500.0,0.00015342,2]
[323039916,1713611452399,-500.0,0.00015342,2]
[323039917,1713611452408,-500.0,0.00015342,2]
[323039918,1713611452418,-500.0,0.00015342,2]
[323039919,1713611452427,-500.0,0.00015342,2]
[323039920,1713611452437,-500.0,0.00015342,2]
[323039921,1713611452447,-762.22,0.00015342,2]
[323039922,1713611452456,-500.0,0.00015342,2]
[323039923,1713611452467,-500.0,0.00015342,2]
[323039924,1713611452477,-1235.55,0.00015342,2]
[323039925,1713611452486,-559.75,0.00015342,2]
[323039926,1713611452496,-500.0,0.00015342,2]
[323039927,1713611452505,-500.0,0.00015342,2]
[323039928,1713611452810,-695.53,0.00015342,2]
[323039929,1713611452820,-500.0,0.00015342,2]
[323039930,1713611452831,-895.61,0.00015342,2]
[323039931,1713611452841,-500.0,0.00015342,2]
[323039932,1713611452851,-500.0,0.00015342,2]
[323039933,1713611452861,-922.84,0.00015342,2]
[323039934,1713611452871,-500.0,0.00015342,2]
[323039935,1713611452880,-500.0,0.00015342,2]
[323039936,1713611452889,-741.21,0.00015342,2]
[323039937,1713611452900,-578.94,0.00015342,2]
[323039938,1713611452909,-525.75,0.00015342,2]
[323039939,1713611452918,-553.94,0.00015342,2]
[323039940,1713611452927,-500.0,0.00015342,2]
[323039941,1713611452936,-519.72,0.00015342,2]
[323039942,1713611452946,-500.0,0.00015342,2]
[323039943,1713611452956,-1371.03,0.00015342,2]
[323039944,1713611452965,-500.0,0.00015342,2]
[323039945,1713611452974,-500.0,0.00015342,2]
[323039946,1713611452984,-500.0,0.00015342,2]
[323039947,1713611452993,-475.19564073,0.00015342,2]
[323039948,1713611453003,-1000.57,0.00015342,2]
[323039949,1713611453013,-500.0,0.00015342,2]
[323039950,1713611453022,-500.0,0.00015342,2]
[323039951,1713611453032,-500.0,0.00015342,2]
[323039952,1713611453041,-857.28,0.00015342,2]
[323039953,1713611453051,-726.62,0.00015342,2]
[323039954,1713611453061,-612.75,0.00015342,2]
[323039955,1713611453071,-500.0,0.00015342,2]
[323039956,1713611453080,-500.0,0.00015342,2]
[323039957,1713611453090,-500.0,0.00015342,2]
[323039958,1713611453099,-500.0,0.00015342,2]
[323039959,1713611453108,-1097.66,0.00015342,2]
[323039960,1713611453117,-500.0,0.00015342,2]
[323039961,1713611453127,-709.95,0.00015342,2]
[323039962,1713611453136,-20000.0,0.00015342,5]
[323039963,1713611453147,-500.0,0.00015342,2]
[323039964,1713611453157,-500.0,0.00015342,2]
[323039965,1713611453166,-559.37,0.00015342,2]
[323039966,1713611453176,-500.0,0.00015342,2]
[323039967,1713611453186,-755.38,0.00015342,2]
[323039968,1713611453195,-500.0,0.00015342,2]
[323039969,1713611453205,-500.0,0.00015342,2]
[323039970,1713611453214,-500.0,0.00015342,2]
[323039971,1713611453224,-500.0,0.00015342,2]
[323039972,1713611453233,-500.0,0.00015342,2]
[323039973,1713611453243,-500.0,0.00015342,2]
[323039974,1713611453254,-500.0,0.00015342,2]
[323039975,1713611453264,-532.35,0.00015342,2]
[323039976,1713611453274,-810.66,0.00015342,2]
[323039977,1713611453283,-791.15,0.00015342,2]
[323039978,1713611453293,-577.88,0.00015342,2]
[323039979,1713611453302,-892.0,0.00015342,2]
[323039980,1713611453312,-521.75,0.00015342,2]
[323039981,1713611453322,-500.0,0.00015342,2]
[323039982,1713611453333,-500.0,0.00015342,2]
[323039983,1713611453344,-632.68,0.00015342,2]
[323039984,1713611453353,-500.0,0.00015342,2]
[323039985,1713611453363,-500.0,0.00015342,2]
[323039986,1713611453373,-500.0,0.00015342,2]
[323039987,1713611453382,-500.0,0.00015342,2]
[323039988,1713611453392,-500.0,0.00015342,2]
[323039989,1713611453403,-590.98,0.00015342,2]
[323039990,1713611453412,-500.0,0.00015342,2]
[323039991,1713611453422,-500.0,0.00015342,2]
[323039992,1713611453432,-500.0,0.00015342,2]
[323039993,1713611453442,-843.99,0.00015342,2]
[323039994,1713611453451,-500.0,0.00015342,2]
[323039995,1713611453462,-500.0,0.00015342,2]
[323039996,1713611453471,-500.0,0.00015342,2]
[323039997,1713611453481,-500.0,0.00015342,2]
[323039998,1713611453491,-500.0,0.00015342,2]
[323039999,1713611453500,-500.0,0.00015342,2]
[323040000,1713611453510,-500.0,0.00015342,2]
[323040001,1713611453519,-500.0,0.00015342,2]
[323040002,1713611453528,-867.5,0.00015342,2]
[323040003,1713611453538,-500.0,0.00015342,2]
[323040004,1713611453548,-500.0,0.00015342,2]
[323040005,1713611453557,-1023.85,0.00015342,2]
[323040006,1713611453567,-500.0,0.00015342,2]
[323040007,1713611453577,-500.0,0.00015342,2]
[323040008,1713611453586,-500.0,0.00015342,2]
[323040009,1713611453595,-1042.11,0.00015342,2]
[323040010,1713611453605,-500.0,0.00015342,2]
[323040011,1713611453614,-500.0,0.00015342,2]
[323040012,1713611453623,-1226.68,0.00015342,2]
[323040013,1713611453632,-572.58,0.00015342,2]
[323040014,1713611453643,-500.0,0.00015342,2]
[323040015,1713611453653,-564.25,0.00015342,2]
[323040016,1713611453662,-721.07,0.00015342,2]
[323040017,1713611453672,-500.0,0.00015342,2]
[323040018,1713611453682,-500.0,0.00015342,2]
[323040019,1713611453691,-500.0,0.00015342,2]
[323040020,1713611453701,-500.0,0.00015342,2]
[323040021,1713611453710,-500.0,0.00015342,2]
[323040022,1713611453720,-500.0,0.00015342,2]
[323040023,1713611453730,-500.0,0.00015342,2]
[323040024,1713611453739,-500.0,0.00015342,2]
[323040025,1713611453749,-500.0,0.00015342,2]
[323040026,1713611453759,-500.0,0.00015342,2]
[323040027,1713611453768,-765.69,0.00015342,2]
[323040028,1713611453777,-500.0,0.00015342,2]
[323040029,1713611453787,-500.0,0.00015342,2]
[323040030,1713611453797,-500.0,0.00015342,2]
[323040031,1713611453806,-508.67,0.00015342,2]
[323040032,1713611453816,-500.0,0.00015342,2]
[323040033,1713611453825,-1070.11,0.00015342,2]
[323040034,1713611453836,-500.0,0.00015342,2]
[323040035,1713611453846,-1307.81,0.00015342,2]
[323040036,1713611453855,-500.0,0.00015342,2]
[323040037,1713611453865,-500.0,0.00015342,2]
[323040038,1713611453875,-500.0,0.00015342,2]
[323040039,1713611453885,-500.0,0.00015342,2]
[323040040,1713611453895,-585.19,0.00015342,2]
[323040041,1713611453905,-500.0,0.00015342,2]
[323040042,1713611453915,-500.0,0.00015342,2]
[323040043,1713611453924,-558.07,0.00015342,2]
[323040044,1713611453934,-500.0,0.00015342,2]
[323040045,1713611453943,-500.0,0.00015342,2]
[323040046,1713611453952,-653.05,0.00015342,2]
[323040047,1713611453962,-500.0,0.00015342,2]
[323040048,1713611453971,-500.0,0.00015342,2]
[323040049,1713611453981,-500.0,0.00015342,2]
[323040050,1713611453991,-500.0,0.00015342,2]
[323040051,1713611454000,-651.68,0.00015342,2]
[323040052,1713611454010,-500.0,0.00015342,2]
[323040053,1713611454019,-500.0,0.00015342,2]
[323040054,1713611454031,-784.82,0.00015342,2]
[323040055,1713611454041,-500.0,0.00015342,2]
[323040056,1713611454051,-500.0,0.00015342,2]
[323040057,1713611454061,-500.0,0.00015342,2]
[323040058,1713611454071,-1053.42,0.00015342,2]
[323040059,1713611454080,-1022.65,0.00015342,2]
[323040060,1713611454090,-500.0,0.00015342,2]
[323040061,1713611454099,-572.56,0.00015342,2]
[323040062,1713611454109,-1612.68,0.00015342,2]
[323040063,1713611454119,-500.0,0.00015342,2]
[323040064,1713611454129,-500.0,0.00015342,2]
[323040065,1713611454139,-500.0,0.00015342,2]
[323040066,1713611454149,-500.0,0.00015342,2]
[323040067,1713611454158,-900.03,0.00015342,2]
[323040068,1713611454168,-500.0,0.00015342,2]
[323040069,1713611454178,-610.43149575,0.00015342,2]
[323040070,1713611454188,-1765.63,0.00015342,2]
[323040071,1713611454198,-500.0,0.00015342,2]
[323040072,1713611454208,-500.0,0.00015342,2]
[323040073,1713611454217,-508.04,0.00015342,2]
[323040074,1713611454227,-503.14228776,0.00015342,2]
[323040075,1713611454236,-500.0,0.00015342,2]
[323040076,1713611454245,-1297.27,0.00015342,2]
[323040077,1713611454256,-500.0,0.00015342,2]
[323040078,1713611454267,-500.0,0.00015342,2]
[323040079,1713611454277,-500.0,0.00015342,2]
[323040080,1713611454287,-500.0,0.00015342,2]
[323040081,1713611454296,-1769.77,0.00015342,2]
[323040082,1713611454306,-500.0,0.00015342,2]
[323040083,1713611454315,-500.0,0.00015342,2]
[323040084,1713611454325,-500.0,0.00015342,2]
[323040085,1713611454335,-500.0,0.00015342,2]
[323040086,1713611454345,-500.0,0.00015342,2]
[323040087,1713611454354,-704.88,0.00015342,2]
[323040088,1713611454363,-500.0,0.00015342,2]
[323040089,1713611454373,-500.0,0.00015342,2]
[323040090,1713611454382,-500.0,0.00015342,2]
[323040091,1713611454392,-1128.65,0.00015342,2]
[323040092,1713611454402,-500.0,0.00015342,2]
[323040093,1713611454412,-500.0,0.00015342,2]
[323040094,1713611454423,-500.0,0.00015342,2]
[323040095,1713611454432,-1554.57,0.00015342,2]
[323040096,1713611454442,-606.35,0.00015342,2]
[323040097,1713611454451,-502.6119526,0.00015342,2]
[323040098,1713611454460,-150.0,0.00015342,2]
[323040099,1713611454469,-500.0,0.00015342,2]
[323040100,1713611454478,-553.78,0.00015342,2]
[323040101,1713611454488,-1880.98,0.00015342,2]
[323040102,1713611454497,-501.87717457,0.00015342,2]
[323040103,1713611454507,-651.66,0.00015342,2]
[323040104,1713611454516,-500.0,0.00015342,2]
[323040105,1713611454526,-500.0,0.00015342,2]
[323040106,1713611454535,-500.0,0.00015342,2]
[323040107,1713611454545,-500.0,0.00015342,2]
[323040108,1713611454554,-526.69,0.00015342,2]
[323040109,1713611454563,-1218.26,0.00015342,2]
[323040110,1713611454572,-500.0,0.00015342,2]
[323040111,1713611454581,-500.0,0.00015342,2]
[323040112,1713611454591,-500.0,0.00015342,2]
[323040113,1713611454601,-500.0,0.00015342,2]
[323040114,1713611454610,-500.0,0.00015342,2]
[323040115,1713611454621,-1403.96,0.00015342,2]
[323040116,1713611454630,-500.0,0.00015342,2]
[323040117,1713611454640,-500.0,0.00015342,2]
[323040118,1713611454651,-500.0,0.00015342,2]
[323040119,1713611454661,-614.73,0.00015342,2]
[323040120,1713611454671,-500.0,0.00015342,2]
[323040121,1713611454680,-500.0,0.00015342,2]
[323040122,1713611454690,-1503.93,0.00015342,2]
[323040123,1713611454700,-261.27583175,0.00015342,2]
[323040124,1713611454709,-500.0,0.00015342,2]
[323040125,1713611454719,-500.0,0.00015342,2]
[323040126,1713611454728,-500.0,0.00015342,2]
[323040127,1713611454737,-500.0,0.00015342,2]
[323040128,1713611454747,-500.0,0.00015342,2]
[323040129,1713611454756,-886.92,0.00015342,2]
[323040130,1713611454766,-500.0,0.00015342,2]
[323040131,1713611454775,-500.0,0.00015342,2]
[323040132,1713611454785,-571.96,0.00015342,2]
[323040133,1713611454795,-973.82,0.00015342,2]
[323040134,1713611454805,-606.64,0.00015342,2]
[323040135,1713611454814,-500.0,0.00015342,2]
[323040136,1713611454824,-500.0,0.00015342,2]
[323040137,1713611454834,-1814.56,0.00015342,2]
[323040138,1713611454843,-500.0,0.00015342,2]
[323040139,1713611454853,-500.0,0.00015342,2]
[323040140,1713611454862,-500.0,0.00015342,2]
[323040141,1713611454872,-500.0,0.00015342,2]
[323040142,1713611454883,-1838.12,0.00015342,2]
[323040143,1713611454892,-500.0,0.00015342,2]
[323040144,1713611454903,-500.0,0.00015342,2]
[323040145,1713611454913,-1379.65,0.00015342,2]
[323040146,1713611454922,-500.0,0.00015342,2]
[323040147,1713611454932,-500.0,0.00015342,2]
[323040148,1713611454942,-767.93,0.00015342,2]
[323040149,1713611454951,-500.0,0.00015342,2]
[323040150,1713611454960,-605.5,0.00015342,2]
[323040151,1713611454970,-500.0,0.00015342,2]
[323040152,1713611454979,-500.0,0.00015342,2]
[323040153,1713611454989,-500.0,0.00015342,2]
[323040154,1713611455000,-500.0,0.00015342,2]
[323040155,1713611455010,-982.29,0.00015342,2]
[323040156,1713611455019,-500.0,0.00015342,2]
[323040157,1713611455029,-151.0,0.00015342,2]
[323040158,1713611455038,-500.0,0.00015342,2]
[323040159,1713611455047,-500.0,0.00015342,2]
[323040160,1713611455057,-1108.16,0.00015342,2]
[323040161,1713611455067,-500.0,0.00015342,2]
[323040162,1713611455076,-500.0,0.00015342,2]
[323040163,1713611455085,-622.21,0.00015342,2]
[323040164,1713611455095,-151.0,0.00015342,2]
[323040165,1713611455104,-500.0,0.00015342,2]
[323040166,1713611455114,-500.0,0.00015342,2]
[323040167,1713611455123,-500.0,0.00015342,2]
[323040168,1713611455132,-500.0,0.00015342,2]